Cogmind - Beta 13 @@@ ROGUE MODE // 2024.06.08 @ 10:43:28 Player: Sionnis Result: Destroyed by 9I-LPI(R) with Subdweller Laser Performance ------------- Evolutions (0) 0 Regions Visited (3) 600 Robots Destroyed (28) 140 Value Destroyed (444) 444 Prototype IDs (0) 0 Alien Tech Used (0) 0 Bonus (0) 0 TOTAL SCORE: 1184 Bonus ------- None Cogmind --------- Core Integrity 0/250 Matter 275/300 Energy 43/100 System Corruption 0% Temperature Cool (6) Movement Rolling (120) Ox1 Location -10/Subcaves Parts ------- > --- POWER (1) -------- (None) > --- PROPULSION (2) --- Subdweller Monowheel > --- UTILITY (2) ------ Large Storage Unit Targeting Computer > --- WEAPON (2) ------- Subdweller Laser Autogun > --- INVENTORY (15) --- Light Nuclear Core Light Treads Light Treads Wheel Improved Heat Sink Large Storage Unit Structural Scanner Hacking Suite Autogun Autogun Subdweller Machine Gun Heavy Battle Rifle Subdweller Shrapnel Launcher Multitool Makeshift Sword Peak State ------------ > --- POWER ------------ Ion Engine > --- PROPULSION ------- Light Treads Subdweller Monowheel > --- UTILITY ---------- Large Storage Unit Targeting Computer > --- WEAPON ----------- Subdweller Beam Cannon Autogun > --- INVENTORY -------- Light Nuclear Core Light Treads Light Treads Wheel Improved Heat Sink Large Storage Unit Structural Scanner Targeting Computer Hacking Suite Autogun Autogun Autogun Heavy Battle Rifle Subdweller Shrapnel Launcher Makeshift Sword [Rating: 13] Favorites ----------- Power Ion Engine Engine Ion Engine Propulsion Light Treads Treads Light Treads Wheel Subdweller Monowheel Utility Targeting Computer Storage Large Storage Unit Processor Targeting Computer Weapon Autogun Energy Gun Subdweller Laser Energy Cannon Subdweller Beam Cannon Ballistic Gun Autogun Special Weapon Mining Laser Build | -11 -10 -10 -10 ------- Run | Yrd Mat Min Sub Slots Evolved . | . . . . Power . | . . . . Propulsion . | . . . . Utility . | . . . . Weapon . | . . . . Parts Attached 18 | 3 6 2 7 Power 2 | 1 1 . . Engine 2 | 1 1 . . Core . | . . . . Reactor . | . . . . Propulsion 3 | 2 . . 1 Treads 2 | 2 . . . Leg . | . . . . Wheel 1 | . . . 1 Hover . | . . . . Flight . | . . . . Utility 3 | . 3 . . Device . | . . . . Storage 2 | . 2 . . Processor 1 | . 1 . . Hackware . | . . . . Protection . | . . . . Artifact . | . . . . Weapon 10 | . 2 2 6 Energy Gun 2 | . . . 2 Energy Cannon 1 | . . . 1 Ballistic Gun 6 | . 2 1 3 Ballistic Cannon . | . . . . Launcher . | . . . . Special Weapon 1 | . . 1 . Impact Weapon . | . . . . Slashing Weapon . | . . . . Piercing Weapon . | . . . . Special Melee Weapon . | . . . . Unidentified Prototypes . | . . . . Parts Lost 3 | . . . 3 Power 1 | . . . 1 Propulsion 2 | . . . 2 Utility . | . . . . Weapon . | . . . . Highest Loss Streak 1 | . . . 1 To Critical Strikes . | . . . . Average Slot Usage (%) 97 | . 97 100 96 Engine 13 | . 14 14 13 Treads 25 | . 28 28 19 Wheel 1 | . . . 6 Storage 13 | . 12 14 14 Processor 13 | . 13 14 14 Energy Gun 1 | . . . 6 Ballistic Gun 24 | . 27 27 17 Naked Turns . | . . . . Heaviest Build 37 | 3 31 31 37 Greatest Support 40 | 40 40 40 40 Greatest Overweight (x) 1 | . . . 1 Average Overweight (x) . | . . . . Largest Inventory Capacity 15 | 5 15 15 15 Average Capacity 14 | 5 14 15 15 Most Carried 15 | . 15 15 15 Average Carried 10 | . 7 14 14 Final Capacity 15 | 5 15 15 15 Final Carried 15 | . 15 14 15 Class Distribution -------------------- 100% | Mutant Dominant Class ---------------- Mutant | -10/Materials Mutant | -10/Mines Mutant | -10/Subcaves Resources | -11 -10 -10 -10 ----------- Run | Yrd Mat Min Sub Matter Collected 891 | 179 463 80 169 Remotely . | . . . . Salvage Created 754 | . 526 52 176 Parts 68 | . 53 7 8 Haulers Intercepted 1 | . 1 . . Recyclers Shooed . | . . . . Parts Field Recycled . | . . . . Retrieved Matter . | . . . . Parts Self-Destructed 8 | . . . 8 Prevented . | . . . . Kills | -11 -10 -10 -10 ------- Run | Yrd Mat Min Sub Combat Hostiles Destroyed 18 | . 11 4 3 Guns 18 | . 11 4 3 Classes Destroyed 12 | . 9 1 2 Worker 2 | . 2 . . Builder 1 | . 1 . . Tunneler 1 | . 1 . . Hauler 1 | . 1 . . Recycler 1 | . 1 . . Operator 2 | . 2 . . Watcher 3 | . 3 . . Swarmer 11 | . 8 3 . Grunt 3 | . 3 . . Cobbler 1 | . . . 1 Subdweller 3 | . . . 3 Assembled 1 | . . 1 . Best Kill Streak 6 | . 6 3 1 Combat Bots Only 6 | . 6 3 1 Max Kills in Single Turn 2 | . 2 1 1 Gunslinging . | . . . . Exploded . | . . . . Melee . | . . . . Uniques/NPCs Destroyed . | . . . . Combat | -11 -10 -10 -10 -------- Run | Yrd Mat Min Sub Hostile Shots Fired 84 | . 36 12 36 Missed 20 | . 12 . 8 Damage Taken 925 | . 205 110 610 Core 269 | . 56 . 213 Absorbed by Shields . | . . . . Regen/Repaired (Parts) 62 | . 62 . . Core Remaining (%) 100 | 100 . . . Volleys Fired 88 | . 44 14 30 Largest 2 | . 2 2 2 Hottest 103 | . 46 100 103 Shots Fired 169 | . 88 24 57 Gun 162 | . 88 20 54 Cannon 3 | . . . 3 Launcher . | . . . . Special 4 | . . 4 . Kinetic 143 | . 88 20 35 Thermal 26 | . . 4 22 Explosive . | . . . . Electromagnetic . | . . . . Robot Hit Streak 17 | . 7 4 17 Robot Miss Streak 4 | . 4 3 1 Penetration Max . | . . . . Secondary Targets 2 | . 1 1 . Max Gunslinging Chain 1 | . 1 1 . Shots Hit Robots 96 | . 43 9 44 Core Hits 38 | . 26 5 7 Critical Kills 1 | . . . 1 Critical Parts Destroyed 1 | . 1 . . Critical Strikes 2 | . 1 . 1 Meltdown 1 | . . . 1 Destroy 1 | . 1 . . Melee Attacks . | . . . . Impact . | . . . . Slashing . | . . . . Piercing . | . . . . Sneak Attacks . | . . . . Combat Hostiles . | . . . . Follow-up Attacks . | . . . . Damage Inflicted 1682 | . 710 162 810 Guns 1601 | . 710 162 729 Cannons 81 | . . . 81 Explosions . | . . . . Melee . | . . . . Ramming . | . . . . Kinetic 1292 | . 710 162 420 Thermal 390 | . . . 390 Explosive . | . . . . Electromagnetic . | . . . . Impact . | . . . . Slashing . | . . . . Piercing . | . . . . Highest Corruption . | . . . . Average Corruption . | . . . . Corruption Purged . | . . . . Corruption Blocked . | . . . . Overload Shots . | . . . . Overflow Damage . | . . . . Projectiles . | . . . . Explosions . | . . . . Melee . | . . . . Knockbacks . | . . . . Impact . | . . . . Kinetic . | . . . . Secondary . | . . . . Self-Inflicted Damage . | . . . . Shots . | . . . . Rammed . | . . . . Targets Rammed . | . . . . Kicked . | . . . . Crushed . | . . . . Highest Temperature 46 | . 12 46 44 Average Temperature 9 | . 5 16 9 Received Heat Transfer 158 | . 18 80 60 Siege Activations . | . . . . Robots Corrupted . | . . . . Combat Hostiles . | . . . . Parts Fried . | . . . . Impact Corruptions . | . . . . Robots Melted 1 | . . . 1 Combat Hostiles . | . . . . Parts Melted 2 | . . . 2 Heat Transferred 486 | . . . 486 Parts Sabotaged . | . . . . Parts Stolen . | . . . . Parts Stripped . | . . . . Power Chain Reactions . | . . . . Alert | -11 -10 -10 -10 ------- Run | Yrd Mat Min Sub Peak Influence 260 | . 260 122 . Initial 22 | . . 22 . Average 110 | . 114 107 . Maximum Alert Level 1 | . 1 . . Low Security (%) 90 | 100 86 100 . Level 1 9 | . 13 . . Level 2 . | . . . . Level 3 . | . . . . Level 4 . | . . . . Level 5 . | . . . . High Security . | . . . . Max Security . | . . . . Squads Dispatched 2 | . 2 . . Investigation . | . . . . Extermination . | . . . . Reinforcement 2 | . 2 . . Assault . | . . . . Garrison . | . . . . Intercept . | . . . . Searches Triggered . | . . . . Construction Impeded . | . . . . Haulers Reinforced . | . . . . Active Scanning Responses . | . . . . Cargo Convoy Interrupts . | . . . . Stealth | -11 -10 -10 -10 --------- Run | Yrd Mat Min Sub Distress Signals 1 | . . 1 . Communications Jammed . | . . . . Distress Signals . | . . . . Times Spotted 27 | . 18 3 6 Peak Tracking Total 6 | . 6 2 2 Tactical Retreats 1 | . 1 . . Traps | -11 -10 -10 -10 ------- Run | Yrd Mat Min Sub Traps Triggered . | . . . . Indirectly . | . . . . Trap Hack Attempts . | . . . . Triggered . | . . . . Disarmed . | . . . . Reprogrammed . | . . . . Reused . | . . . . Traps Extracted . | . . . . Installed . | . . . . Triggered . | . . . . Machines | -11 -10 -10 -10 ---------- Run | Yrd Mat Min Sub Machines Disabled 2 | . 1 1 . Max in Single Turn 1 | . 1 1 . Machines Repaired . | . . . . Machines Dismantled . | . . . . Machines Sabotaged . | . . . . Overloaded Fab Kills . | . . . . Hacking | -11 -10 -10 -10 --------- Run | Yrd Mat Min Sub Machines Accessed 6 | . 6 . . Terminals 4 | . 4 . . Fabricators . | . . . . Repair Stations 1 | . 1 . . Recycling Units 1 | . 1 . . Scanalyzers . | . . . . Garrison Access . | . . . . Total Hacks 14 | . 14 . . Successful 8 | . 8 . . Failed 6 | . 6 . . Catastrophic 1 | . 1 . . Database Lockouts . | . . . . Manual 9 | . 9 . . Terminals 10 | . 10 . . Fabricators . | . . . . Repair Stations 3 | . 3 . . Recycling Units 1 | . 1 . . Scanalyzers . | . . . . Garrison Access . | . . . . Terminal Hacks 4 | . 4 . . Robot Analysis 4 | . 4 . . Fabricator Hacks . | . . . . Repair Station Hacks 2 | . 2 . . Scan Component 1 | . 1 . . Repair 1 | . 1 . . Recycling Unit Hacks 1 | . 1 . . Report Inventory 1 | . 1 . . Scanalyzer . | . . . . Garrison Access Hacks . | . . . . Unauthorized Hacks 1 | . 1 . . Terminals 1 | . 1 . . Botnet 1 | . 1 . . Fabricators . | . . . . Repair Stations . | . . . . Recycling Units . | . . . . Scanalyzers . | . . . . Garrison Access . | . . . . Data Cores Recovered . | . . . . Used . | . . . . Hacking Detections 6 | . 6 . . Full Trace Events . | . . . . Feedback Events . | . . . . Feedback Blocked . | . . . . Robot Schematics Acquired . | . . . . Robots Built . | . . . . Authchips . | . . . . Time . | . . . . Total Robot Build Rating . | . . . . Part Schematics Acquired . | . . . . Parts Built . | . . . . Authchips . | . . . . Time . | . . . . Total Part Build Rating . | . . . . Parts Repaired 1 | . 1 . . Time 13 | . 13 . . Parts Recycled . | . . . . Recycled Matter . | . . . . Retrieved Matter . | . . . . Retrieved Components . | . . . . Parts Scanalyzed . | . . . . Part Schematics Acquired . | . . . . Parts Damaged . | . . . . Bothacking | -11 -10 -10 -10 ------------ Run | Yrd Mat Min Sub Used RIF Installer . | . . . . Robots Hacked . | . . . . Non-combat . | . . . . Combat . | . . . . Robot Hacks Applied . | . . . . Relay Couplers Released . | . . . . Fabnet Peak Effective % . | . . . . Robots Rewired . | . . . . Allies Hacked . | . . . . Hacks Repelled . | . . . . Allies | -11 -10 -10 -10 -------- Run | Yrd Mat Min Sub Total Allies . | . . . . Largest Group . | . . . . Highest-Rated Group . | . . . . Highest-Rated Ally . | . . . . Total Orders . | . . . . Ally Attacks . | . . . . Total Damage . | . . . . Kills . | . . . . Allies Corrupted . | . . . . Allies Melted . | . . . . Intel | -11 -10 -10 -10 ------- Run | Yrd Mat Min Sub Robot Analysis Total 4 | . 4 . . Derelict Logs Recovered 2 | . . 1 1 Drone Launches . | . . . . Drone Recoveries . | . . . . Exploration | -11 -10 -10 -10 ------------- Run | Yrd Mat Min Sub Turns Passed 2349 | 43 1228 449 629 Spaces Moved 1172 | 29 654 130 359 Core 6 | 6 . . . Treads 986 | 23 654 130 179 Legs . | . . . . Wheels 180 | . . . 180 Hover . | . . . . Flight . | . . . . Fastest Speed 50 | 50 160 160 120 Average Speed 153 | 137 160 160 141 Slowest Speed 240 | 160 160 160 240 Overloaded Moves . | . . . . Propulsion Burnouts . | . . . . Robots Hopped . | . . . . Cave-ins Triggered . | . . . . Exploration Rate (%) 34 | 3 68 25 41 Regions Visited 3 Branch Regions 2 Pre-discovered Areas 1 | . . . 1 Known Exits Taken . | . . . . Unknown Exits Taken 3 | 1 1 1 . Scrap Searched 5 | . . 1 4 Spaces Dug . | . . . . Terrain Destroyed 1 | . . 1 . Melee . | . . . . Projectile 1 | . . 1 . AOE . | . . . . Terrain Rammed . | . . . . Walls Destroyed . | . . . . Machines Disabled . | . . . . Actions | -11 -10 -10 -10 --------- Run | Yrd Mat Min Sub Total 1566 | 31 762 345 428 Wait 253 | . 45 193 15 Move 1169 | 28 653 129 359 Hop . | . . . . Pick Up 25 | . 14 3 8 Fast Attach 10 | 3 4 . 3 Attach 1 | . . 1 . Detach . | . . . . Swap 7 | . 2 1 4 Drop 13 | . . 4 9 Fire 88 | . 44 14 30 Melee . | . . . . Ram . | . . . . Kick . | . . . . Crush . | . . . . Escape Stasis . | . . . . Rewire . | . . . . Trap . | . . . . Miscellaneous . | . . . . Route ------- -11/Scrapyard -10/Materials (discovered 2 exits: [*Mat] / [*Min]) -10/Mines -10/Subcaves (discovered 1 exit: [*Mat]) History --------- Turn | Location | Event 20 | -11/Scrapyard | Discovered new exit (range 15) 44 | -11/Scrapyard | Entered Materials 298 | -10/Materials | Discovered new exit (range 10) 309 | -10/Materials | Build established: Mutant 613 | -10/Materials | Discovered new exit (range 5) 772 | -10/Materials | Repaired Lgt. Treads 1272 | -10/Materials | Entered Mines 1273 | -10/Mines | Assembled infested the area 1299 | -10/Mines | Met a Derelict bent on vengeance 1577 | -10/Mines | Learned 2 Materials zone layouts 1710 | -10/Mines | Discovered new exit (range 3) 1721 | -10/Mines | Entered Subcaves 2040 | -10/Subcaves | Core integrity fell below 50% 2176 | -10/Subcaves | Shifting Twisted Machinery released Sub. Laser 2181 | -10/Subcaves | Shifting Twisted Machinery released Sub. Machine Gun 2247 | -10/Subcaves | Discovered new exit (range 15) 2317 | -10/Subcaves | Learned location of Zion (-6) 2343 | -10/Subcaves | Core integrity fell below 20% 2350 | -10/Subcaves | Destroyed by 9I-LPI(R) with Subdweller Laser Last Messages --------------- 02211_ Dropped Sub. Beam Cannon. 02212_ Acquired Sub. Laser. 02230_ Acquired 8 matter. 02247_ EXIT=FOUND 02249_ Acquired 12 matter. 02251_ Subatomizers dissect the Wheel. 02259_ Dropped Autogun. 02259_ Acquired Multitool. 02261_ Subatomizers dissect the Wheel. 02282_ Lgt. Treads destroyed. 02283_ 9S-ZVN(R): "SUBHATE!" 02289_ Sub. Optics melted. 02289_ Sub. Monowheel melted. 02289_ 9S-ZVN(R) destroyed. 02298_ Acquired 6 matter. 02317_ Acquired derelict log, extracted data. World map updated: -6/Zion. 02327_ Ion Engine destroyed. 02347_ Sub. Machine Gun shoots sparks and powers down. Map ----- +----------------------------------------------------+ | ?????????????????????????????????????????????????? | | ?????????????????????????????????????????????????? | | ?????????????????????????????????????????????????? | | ?????????????????????????????????????????????????? | | ?????????????????????????????????????????????????? | | ?????????????????????????????????????????????????? | | ?????????????????????????????????????????????????? | | ?????????????????????????????????????????????????? | | ?????????????????????????????????????????????????? | | ?????????????????????????????????????????????????? | | ?????????????????????????????????????????????????? | | ???????????????????#??????? ???????????????????? | | ???????????????????# ?????? ???????????????????? | | ??????????????????? ?????" ???????????????????? | | ??????????????????? ? ?? ??????????????????? | | ??????????????????? "" "#?????????????????? | | ???????????????????? "" ""##????????????????? | | ????????????????????? "" ##"" #????????????????? | | ??????????????????????# " ##"""####??????????????? | | ?????????????????????## ""##""#?# ##?????????????? | | ?????????????????????# " "# "### ##????????????? | | ????????????????????## """ #" ##???????????? | | ???????????????????## """ #"%& #???????????? | | ???????????????????# "" ##"& # #???????????? | | ???????????????????# " RR###### # " ##???????????? | | ???????????????????#### @#???##### ##???????????? | | ?????????????????????# #?????## ###?????????? | | ?????????????????????## ##???### #?????????? | | ?????????????????????# #???# #?????????? | | ?????????????????????## #???#### #?????????? | | ?????????????????????## ???????##" #?????????? | | ?????????????????????? ##??????## #?????????? | | ??????????????????????# #??????# ###?????????? | | ?????????????????????## #??????#" #???????????? | | #####????????????????# ##??####" ##???????????? | | #"" ##??????????????## #### #????????????? | | " " #?????????###?## ### #????????????? | | """#??????#### ### ## #????????????? | | # ] ##?????# #?# #????????????? | | # #?????# #### #????????????? | | ## #??##### % ## ##????????????? | | ?## ##?## ## ### =% #?????????????? | | ?#" ### ## # ### =[ #????????????? | | ?## #### #### ##?## ## #??????????? | | ??## # # #???# #### ## < #??????????? | | ???### ##########???# #??###?# #??????????? | | ???## ##????????????###### #???????###??????????? | | ??## ##?????????????????? #???????????????????? | | ??# ##??????????????????# #???????????????????? | | ## ## #??????????????????# ##???????????????????? | +----------------------------------------------------+ Best States ------------- Heat Dissipation 25 Energy Generation 10 Energy Capacity 250 Matter Stores 300 Matter Capacity 300 Sight Range 16 Terrain Scan Density 10 Evasion (%) 40 Targeting Accuracy 5 Recoil Reduction 2 Item Schematics ----------------- None Robot Schematics ------------------ None Fabricated ------------ Nothing Alien Tech Used ----------------- None Achievements -------------- None Challenges ------------ None Game ------ Seed gottagofast Manual? 1 Play Time 00:15:56 Cumulative 163.5 hours Start 2024.06.08 @ 10:28:12 End 2024.06.08 @ 10:43:28 Sessions 1 Manual Loads 0 Difficulty Rogue Special Mode None Game No. 167 Rogue 167 Adventurer 0 Explorer 0 Win Type - Total 10 Types 9/0/0/1/0/0/0/0/0 Lore% 67 Gallery% 78 Achievement% 64 Wizard Run 0 Options --------- Layout 1 ASCII 0 Keyboard 0 Movement Numpad Keybinds 0 Fullscreen 1 Font 24/Smallcaps Map View 50x35 Zoom Use 0% Tactical HUD 1 Map Filters NONE Filters NONE Steam 1 RUN: 5d8486a3-a70f-4a2c-bfac-d59300b2a946